fUST/lending_fUST_20250923
["ID","MTS","AMOUNT","RATE_DAILY","PERIOD"]
[387091513,1758570654460,-480.0,0.00020273,2]
[387091515,1758570654469,-480.0,0.00020273,2]
[387091517,1758570654478,-480.0,0.00020273,2]
[387091519,1758570654487,-480.0,0.00020273,2]
[387091521,1758570654496,-512.21,0.00020273,2]
[387091523,1758570654506,-480.0,0.00020273,2]
[387091525,1758570654515,-354.56,0.00020273,2]
[387091527,1758570654524,-480.0,0.00020273,2]
[387091529,1758570654533,-480.0,0.00020273,2]
[387091531,1758570654542,-282.28,0.00020273,2]
[387091533,1758570654551,-480.0,0.00020273,2]
[387091535,1758570654560,-480.0,0.00020273,2]
[387091537,1758570654569,-480.0,0.00020273,2]
[387091538,1758570654578,-480.0,0.00020273,2]
[387091540,1758570654587,-480.0,0.00020273,2]
[387091542,1758570654597,-528.7,0.00020273,2]
[387091544,1758570654606,-213.98,0.00020273,2]
[387091546,1758570654616,-480.0,0.00020273,2]
[387091548,1758570654624,-1070.42,0.00020273,2]
[387091550,1758570654633,-745.32,0.00020273,2]
[387091552,1758570654642,-480.0,0.00020273,2]
[387091554,1758570654652,-480.0,0.00020273,2]
[387091556,1758570654661,-480.0,0.00020273,2]
[387091558,1758570654670,-480.0,0.00020273,2]
[387091561,1758570654680,-480.0,0.00020273,2]
[387091563,1758570654690,-480.0,0.00020273,2]
[387091564,1758570654701,-480.0,0.00020273,2]
[387091566,1758570654710,-480.0,0.00020273,2]
[387091569,1758570654720,-585.8651041,0.00020278,2]
[387091571,1758570654729,-8355.04909351,0.00020359,2]
[387091573,1758570654739,-979.05752131,0.00020419,2]
[387091575,1758570654748,-165.3212423,0.00020434,2]
[387091577,1758570654758,-4336.9327572,0.00020434,2]
[387091579,1758570654767,-168.58402945,0.0002046,2]
[387091581,1758570654776,-151.0,0.00020547,2]
[387091583,1758570654785,-151.0,0.00020547,2]
[387091585,1758570654795,-151.0,0.00020547,2]
[387091587,1758570654804,-151.0,0.00020547,2]
[387091588,1758570654813,-480.0,0.00020547,2]
[387091590,1758570654822,-480.0,0.00020547,2]
[387091592,1758570654831,-480.0,0.00020547,2]
[387091594,1758570654840,-480.0,0.00020547,2]
[387091596,1758570654849,-480.0,0.00020547,2]
[387091598,1758570654858,-151.0,0.00020547,2]
[387091600,1758570654868,-151.0,0.00020547,2]
[387091602,1758570654877,-151.0,0.00020547,2]
[387091604,1758570654886,-151.0,0.00020547,2]
[387091606,1758570654895,-151.0,0.00020547,2]
[387091608,1758570654904,-430.090338,0.00020547,2]
[387091610,1758570654914,-430.090338,0.00020547,2]
[387091612,1758570654923,-430.090338,0.00020547,2]
[387091614,1758570654932,-430.090328,0.00020547,2]
[387091616,1758570654941,-480.0,0.00020547,2]
[387091618,1758570654950,-480.0,0.00020547,2]
[387091620,1758570654959,-151.0,0.00020547,2]
[387091622,1758570654968,-151.0,0.00020547,2]
[387091624,1758570654978,-480.0,0.00020547,2]
[387091626,1758570654987,-480.0,0.00020547,2]
[387091628,1758570654997,-480.0,0.00020547,2]
[387091630,1758570655006,-480.0,0.00020547,2]
[387091632,1758570655016,-480.0,0.00020547,2]
[387091633,1758570655024,-480.0,0.00020547,2]
[387091635,1758570655034,-480.0,0.00020547,2]
[387091637,1758570655043,-979.55,0.00020547,2]
[387091639,1758570655053,-4751.1,0.00020547,2]
[387091641,1758570655062,-480.0,0.00020547,2]
[387091643,1758570655072,-712.65,0.00020547,2]
[387091645,1758570655081,-480.0,0.00020547,2]
[387091647,1758570655091,-480.0,0.00020547,2]
[387091649,1758570655100,-480.0,0.00020547,2]
[387091651,1758570655109,-480.0,0.00020547,2]
[387091653,1758570655119,-480.0,0.00020547,2]
[387091655,1758570655128,-512.16,0.00020547,2]
[387091657,1758570655138,-927.09,0.00020547,2]
[387091659,1758570655147,-480.0,0.00020547,2]
[387091661,1758570655156,-480.0,0.00020547,2]
[387091662,1758570655165,-480.0,0.00020547,2]
[387091664,1758570655175,-480.0,0.00020547,2]
[387091666,1758570655184,-480.0,0.00020547,2]
[387091668,1758570655193,-480.0,0.00020547,2]
[387091670,1758570655203,-480.0,0.00020547,2]
[387091672,1758570655212,-512.21,0.00020547,2]
[387091674,1758570655221,-480.0,0.00020547,2]
[387091676,1758570655231,-480.0,0.00020547,2]
[387091678,1758570655239,-480.0,0.00020547,2]
[387091680,1758570655249,-480.0,0.00020547,2]
[387091682,1758570655258,-480.0,0.00020547,2]
[387091684,1758570655267,-480.0,0.00020547,2]
[387091686,1758570655276,-480.0,0.00020547,2]
[387091688,1758570655289,-528.7,0.00020547,2]
[387091689,1758570655298,-480.0,0.00020547,2]
[387091691,1758570655308,-1070.42,0.00020547,2]
[387091693,1758570655317,-745.32,0.00020547,2]
[387091695,1758570655327,-480.0,0.00020547,2]
[387091697,1758570655336,-480.0,0.00020547,2]
[387091699,1758570655345,-480.0,0.00020547,2]
[387091701,1758570655354,-480.0,0.00020547,2]
[387091703,1758570655366,-480.0,0.00020547,2]
[387091705,1758570655375,-480.0,0.00020547,2]
[387091707,1758570655384,-480.0,0.00020547,2]
[387091709,1758570655394,-480.0,0.00020547,2]
[387091711,1758570655404,-308.14633876,0.00020623,2]
[387091713,1758570655413,-160.0,0.00020644,2]
[387091715,1758570655424,-420.0,0.00020664,2]
[387091717,1758570655433,-151.0,0.000208,4]
[387091719,1758570655443,-1500.0,0.00020816,2]
[387091721,1758570655453,-1500.0,0.00020816,2]
[387091722,1758570655462,-548.0,0.00020821,2]
[387091724,1758570655471,-480.0,0.00020821,2]
[387091726,1758570655480,-480.0,0.00020821,2]
[387091728,1758570655489,-480.0,0.00020821,2]
[387091730,1758570655499,-979.55,0.00020821,2]
[387091732,1758570655508,-4751.1,0.00020821,2]
[387091734,1758570655518,-533.44,0.00020821,2]
[387091736,1758570655528,-712.65,0.00020821,2]
[387091738,1758570655537,-480.0,0.00020821,2]
[387091740,1758570655546,-228.4,0.00020821,2]
[387091742,1758570655555,-480.0,0.00020821,2]
[387091744,1758570655564,-480.0,0.00020821,2]
[387091746,1758570655573,-512.16,0.00020821,2]
[387091748,1758570655582,-927.09,0.00020821,2]
[387091750,1758570655591,-494.78,0.00020821,2]
[387091752,1758570655600,-480.0,0.00020821,2]
[387091753,1758570655609,-487.83,0.00020821,2]
[387091755,1758570655618,-622.93489448,0.00020821,2]
[387091757,1758570655628,-480.0,0.00020821,2]
[387091759,1758570655638,-480.0,0.00020821,2]
[387091761,1758570655647,-512.21,0.00020821,2]
[387091763,1758570655657,-480.0,0.00020821,2]
[387091765,1758570655666,-480.0,0.00020821,2]
[387091767,1758570655675,-191.79,0.00020821,2]
[387091769,1758570655684,-480.0,0.00020821,2]
[387091771,1758570655693,-480.0,0.00020821,2]
[387091773,1758570655703,-480.0,0.00020821,2]
[387091775,1758570655712,-531.75,0.00020821,2]
[387091777,1758570655722,-480.0,0.00020821,2]
[387091779,1758570655731,-528.7,0.00020821,2]
[387091781,1758570655740,-480.0,0.00020821,2]
[387091783,1758570655749,-1070.42,0.00020821,2]
[387091785,1758570655758,-745.32,0.00020821,2]
[387091787,1758570655768,-480.0,0.00020821,2]
[387091789,1758570655776,-480.0,0.00020821,2]
[387091791,1758570655785,-480.0,0.00020821,2]
[387091792,1758570655795,-480.0,0.00020821,2]
[387091795,1758570655806,-480.0,0.00020821,2]
[387091797,1758570655815,-480.0,0.00020821,2]
[387091798,1758570655824,-4349.02301379,0.00020972,2]
[387091800,1758570655833,-151.0,0.00020972,2]
[387091802,1758570655842,-316.85077748,0.00020993,2]
[387091804,1758570655852,-480.0,0.00021095,2]
[387091806,1758570655861,-151.0,0.00021095,2]
[387091808,1758570655870,-151.0,0.00021095,2]
[387091810,1758570655881,-151.0,0.00021095,2]
[387091812,1758570655891,-151.0,0.00021095,2]
[387091814,1758570655900,-151.0,0.00021095,2]
[387091816,1758570655909,-151.0,0.00021095,2]
[387091818,1758570655918,-151.0,0.00021095,2]
[387091820,1758570655927,-979.55,0.00021095,2]
[387091822,1758570655936,-4751.1,0.00021095,2]
[387091824,1758570655946,-712.65,0.00021095,2]
[387091826,1758570655956,-480.0,0.00021095,2]
[387091827,1758570655964,-480.0,0.00021095,2]
[387091829,1758570655974,-512.16,0.00021095,2]
[387091831,1758570655983,-927.09,0.00021095,2]
[387091833,1758570655992,-480.0,0.00021095,2]
[387091835,1758570656002,-480.0,0.00021095,2]
[387091837,1758570656011,-512.21,0.00021095,2]
[387091839,1758570656021,-480.0,0.00021095,2]
[387091841,1758570656030,-480.0,0.00021095,2]
[387091843,1758570656039,-528.7,0.00021095,2]
[387091845,1758570656049,-491.85,0.00021095,2]
[387091847,1758570656058,-1070.42,0.00021095,2]
[387091849,1758570656067,-745.32,0.00021095,2]
[387091851,1758570656076,-480.0,0.00021095,2]
[387091853,1758570656085,-480.0,0.00021095,2]
[387091855,1758570656095,-480.0,0.00021095,2]
[387091857,1758570656104,-260.0,0.00021192,2]
[387091859,1758570656114,-500.0,0.00021317,2]
[387091860,1758570656123,-575.25942439,0.00021317,2]
[387091862,1758570656133,-601.08284645,0.00021345,2]
[387091872,1758570656223,-500.0,0.00021353,2]
[387091874,1758570656233,-450.23936882,0.00021363,2]
[387091876,1758570656243,-1800.95747529,0.00021363,2]
[387091878,1758570656252,-4048.10216508,0.00021363,2]
[387091880,1758570656261,-303.81255009,0.00021363,2]
[387091882,1758570656271,-151.0,0.00021369,2]
[387091884,1758570656280,-151.0,0.00021369,2]
[387091886,1758570656292,-166.751128,0.00021369,2]
[387091888,1758570656301,-166.751128,0.00021369,2]
[387091890,1758570656310,-166.751128,0.00021369,2]
[387091892,1758570656319,-166.751128,0.00021369,2]
[387091894,1758570656329,-462.5,0.00021369,2]
[387091896,1758570656338,-979.55,0.00021369,2]
[387091898,1758570656348,-4751.1,0.00021369,2]
[387091900,1758570656357,-712.65,0.00021369,2]
[387091902,1758570656367,-480.0,0.00021369,2]
[387091904,1758570656376,-480.0,0.00021369,2]
[387091906,1758570656385,-512.16,0.00021369,2]
[387091907,1758570656395,-927.09,0.00021369,2]
[387091910,1758570656405,-480.0,0.00021369,2]
[387091912,1758570656414,-480.0,0.00021369,2]
[387091914,1758570656424,-512.21,0.00021369,2]
[387091916,1758570656434,-480.0,0.00021369,2]
[387091917,1758570656443,-480.0,0.00021369,2]
[387091919,1758570656452,-528.7,0.00021369,2]
[387091921,1758570656462,-1070.42,0.00021369,2]
[387091923,1758570656471,-745.32,0.00021369,2]
[387091925,1758570656480,-480.0,0.00021369,2]
[387091927,1758570656489,-480.0,0.00021369,2]
[387091929,1758570656498,-480.0,0.00021369,2]
[387091931,1758570656507,-500.0,0.00021372,2]
[387091933,1758570656517,-500.0,0.00021372,2]
[387091935,1758570656526,-293.81453449,0.00021372,2]
[387091937,1758570656535,-500.0,0.00021372,2]
[387091939,1758570656545,-500.0,0.00021372,2]
[387091941,1758570656555,-500.0,0.00021372,2]
[387091943,1758570656564,-501.02255061,0.00021372,2]
[387091945,1758570656573,-500.0,0.00021372,2]
[387091947,1758570656583,-500.0,0.00021372,2]
[387091949,1758570656592,-500.0,0.00021372,2]
[387091951,1758570656603,-500.0,0.000214,2]
[387091953,1758570656612,-500.0,0.000214,2]
[387091955,1758570656621,-500.0,0.000214,2]
[387091957,1758570656630,-503.02754244,0.000214,2]
[387091959,1758570656640,-380.73686799,0.000214,2]
[387091961,1758570656650,-500.0,0.000214,2]
[387091963,1758570656659,-500.0,0.000214,2]
[387091964,1758570656668,-2198.0,0.00021416,2]
[387091966,1758570656677,-978.0,0.00021416,2]
[387091968,1758570656685,-2159.0,0.00021416,2]
[387091970,1758570656693,-634.0,0.00021416,2]
[387091972,1758570656702,-150.0,0.00021416,2]
[387091974,1758570656711,-250.0,0.00021416,2]
[387091976,1758570656720,-199.96042651,0.00021447,2]
[387091978,1758570656730,-500.0,0.00021475,2]
[387091980,1758570656738,-151.0,0.00021516,2]
[387091982,1758570656747,-151.0,0.00021516,2]
[387091984,1758570656757,-151.0,0.00021516,2]
[387091986,1758570656766,-151.0,0.00021516,2]
[387091988,1758570656775,-151.0,0.00021516,2]
[387091990,1758570656784,-151.0,0.00021516,2]
[387091991,1758570656794,-151.0,0.00021516,2]
[387091993,1758570656805,-151.0,0.00021516,2]
[387091995,1758570656815,-152.30656426,0.00021516,2]
[387091997,1758570656824,-151.0,0.00021516,2]
[387091999,1758570656833,-500.0,0.00021516,2]
[387092001,1758570656841,-151.0,0.00021516,2]
[387092003,1758570656850,-151.0,0.00021516,2]
[387092005,1758570656860,-207.76084726,0.00021516,2]
[387092007,1758570656869,-151.0,0.00021516,2]
[387092009,1758570656878,-151.51217291,0.00021516,2]
[387092011,1758570656888,-151.0,0.00021516,2]
[387092013,1758570656898,-500.0,0.00021516,2]
[387092015,1758570656907,-151.0,0.00021516,2]
[387092017,1758570656916,-192.16542769,0.00021516,2]
[387092019,1758570656925,-151.0,0.00021516,2]
[387092021,1758570656934,-151.0,0.00021516,2]
[387092023,1758570656943,-151.0,0.00021516,2]
[387092025,1758570656953,-163.0,0.00021516,2]
[387092027,1758570656962,-800.0,0.00021555,2]
[387092029,1758570656971,-800.0,0.00021577,2]
[387092031,1758570656980,-800.0,0.00021591,2]
[387092033,1758570656989,-151.0,0.000216,3]
[387092034,1758570656999,-151.0,0.000216,4]
[387092036,1758570657009,-160.0,0.0002162,2]
[387092038,1758570657018,-9985.40130503,0.0002162,2]
[387092040,1758570657027,-233.55588323,0.0002162,2]
[387092042,1758570657037,-160.0,0.0002162,2]
[387092043,1758570657046,-160.0,0.0002162,2]
[387092044,1758570657055,-160.0,0.0002162,2]
[387092045,1758570657064,-160.0,0.0002162,2]
[387092046,1758570657073,-151.0,0.00021626,2]
[387092047,1758570657082,-151.0,0.00021626,2]
[387092048,1758570657090,-151.0,0.00021626,2]
[387092049,1758570657100,-154.891002,0.00021626,2]
[387092050,1758570657108,-151.0,0.00021626,2]
[387092051,1758570657118,-151.0,0.00021626,2]
[387092052,1758570657127,-151.0,0.00021626,2]
[387092053,1758570657135,-151.0,0.00021626,2]
[387092054,1758570657145,-151.0,0.00021626,2]
[387092055,1758570657154,-151.0,0.00021626,2]
[387092056,1758570657162,-151.0,0.00021626,2]
[387092057,1758570657172,-8355.04909351,0.00021639,2]
[387092058,1758570657181,-12173.37304091,0.00021639,2]
[387092059,1758570657190,-979.55,0.00021643,2]
[387092060,1758570657199,-4751.1,0.00021643,2]
[387092061,1758570657210,-712.65,0.00021643,2]
[387092062,1758570657219,-480.0,0.00021643,2]
[387092063,1758570657229,-480.0,0.00021643,2]
[387092064,1758570657240,-512.16,0.00021643,2]
[387092065,1758570657249,-927.09,0.00021643,2]
[387092066,1758570657258,-480.0,0.00021643,2]
[387092067,1758570657267,-480.0,0.00021643,2]
[387092069,1758570657277,-512.21,0.00021643,2]
[387092071,1758570657287,-480.0,0.00021643,2]
[387092073,1758570657302,-456.5,0.00021643,2]
[387092075,1758570657311,-528.7,0.00021643,2]
[387092077,1758570657321,-1070.42,0.00021643,2]
[387092079,1758570657330,-745.32,0.00021643,2]
[387092081,1758570657339,-480.0,0.00021643,2]
[387092082,1758570657348,-480.0,0.00021643,2]
[387092084,1758570657357,-480.0,0.00021643,2]
[387092086,1758570657366,-155.0,0.00021644,5]
[387092088,1758570657376,-2695.3160255,0.00021737,2]
[387092090,1758570657385,-180.0,0.0002174,2]
[387092092,1758570657394,-500.0,0.0002179,2]
[387092095,1758570657404,-151.0,0.0002179,2]
[387092097,1758570657414,-151.0,0.0002179,2]
[387092098,1758570657423,-500.0,0.0002179,2]
[387092100,1758570657432,-297.01791068,0.0002179,2]
[387092102,1758570657442,-967.7005006,0.00021845,2]
[387092104,1758570657451,-979.05752131,0.00021864,2]
[387092106,1758570657460,-1000.0,0.00021865,2]
[387092108,1758570657470,-1000.0,0.00021901,2]
[387092110,1758570657478,-1050.8,0.00021909,2]
[387092112,1758570657487,-979.55,0.00021917,2]
[387092114,1758570657496,-4751.1,0.00021917,2]
[387092116,1758570657505,-712.65,0.00021917,2]
[387092118,1758570657514,-480.0,0.00021917,2]
[387092120,1758570657523,-480.0,0.00021917,2]
[387092122,1758570657531,-512.16,0.00021917,2]
[387092124,1758570657540,-927.09,0.00021917,2]
[387092126,1758570657550,-480.0,0.00021917,2]
[387092128,1758570657559,-480.0,0.00021917,2]
[387092130,1758570657568,-512.21,0.00021917,2]
[387092132,1758570657578,-480.0,0.00021917,2]
[387092134,1758570657587,-500.0,0.00021917,2]
[387092136,1758570657596,-500.0,0.00021917,2]
[387092138,1758570657605,-500.0,0.00021917,2]
[387092140,1758570657615,-500.0,0.00021917,2]
[387092142,1758570657624,-500.0,0.00021917,2]
[387092144,1758570657633,-500.0,0.00021917,2]
[387092146,1758570657643,-528.7,0.00021917,2]
[387092148,1758570657652,-1070.42,0.00021917,2]
[387092150,1758570657661,-745.32,0.00021917,2]
[387092152,1758570657670,-480.0,0.00021917,2]
[387092154,1758570657679,-480.0,0.00021917,2]
[387092156,1758570657688,-480.0,0.00021917,2]
[387092158,1758570657697,-151.0,0.00021918,2]
[387092160,1758570657708,-151.0,0.00021918,2]
[387092162,1758570657717,-151.0,0.00021918,2]
[387092164,1758570657726,-151.0,0.00021918,2]
[387092166,1758570657736,-151.0,0.00021918,2]
[387092168,1758570657745,-151.0,0.00021918,2]
[387092170,1758570657754,-151.0,0.00021918,2]
[387092172,1758570657763,-151.0,0.00021918,2]
[387092174,1758570657772,-151.0,0.00021918,2]
[387092176,1758570657781,-151.0,0.00021918,2]
[387092178,1758570657790,-151.0,0.00021918,2]
[387092180,1758570657799,-151.0,0.00021918,2]
[387092182,1758570657809,-151.0,0.00021918,2]
[387092184,1758570657818,-278.99408,0.00021918,7]
[387092186,1758570657827,-174.17789646,0.00021918,2]
[387092188,1758570657835,-151.0,0.00021918,2]
[387092190,1758570657845,-151.0,0.00021918,2]
[387092192,1758570657854,-151.0,0.00021918,2]
[387092194,1758570657863,-151.0,0.00021918,2]
[387092196,1758570657872,-151.0,0.00021918,2]
[387092197,1758570657881,-151.0,0.00021918,2]
[387092199,1758570657890,-151.0,0.00021918,2]
[387092209,1758570657975,-151.0,0.00021918,2]
[387092211,1758570657987,-151.0,0.00021918,2]
[387092213,1758570657996,-151.0,0.00021918,2]
[387092215,1758570658005,-151.0,0.00021918,2]
[387092217,1758570658015,-151.0,0.00021918,2]
[387092219,1758570658024,-151.0,0.00021918,2]
[387092221,1758570658033,-151.0,0.00021918,2]
[387092222,1758570658042,-151.0,0.00021918,2]
[387092224,1758570658051,-151.0,0.00021918,2]
[387092226,1758570658060,-151.0,0.00021918,2]
[387092228,1758570658069,-151.0,0.00021918,2]
[387092230,1758570658079,-151.0,0.00021918,2]
[387092232,1758570658088,-258.4399263,0.00021918,2]
[387092234,1758570658098,-151.0,0.00021918,2]
[387092236,1758570658107,-151.0,0.00021918,2]
[387092238,1758570658117,-151.0,0.00021918,2]
[387092240,1758570658126,-151.0,0.00021918,2]
[387092242,1758570658135,-155.11806068,0.00021918,2]
[387092244,1758570658146,-151.0,0.00021918,2]
[387092246,1758570658156,-151.0,0.00021918,2]
[387092248,1758570658165,-406.13525957,0.0002192,2]
[387092250,1758570658174,-1003.94153345,0.0002192,2]
[387092252,1758570658184,-1000.0,0.0002192,2]
[387092254,1758570658194,-1000.0,0.0002192,2]
[387092256,1758570658205,-1000.0,0.0002192,2]
[387092258,1758570658214,-508.65777358,0.0002192,2]
[387092260,1758570658223,-1000.0,0.0002192,2]
[387092262,1758570658233,-1000.0,0.0002192,2]
[387092264,1758570658242,-1000.0,0.00021948,2]
[387092266,1758570658251,-1000.0,0.00021948,2]
[387092268,1758570658261,-1000.0,0.00021948,2]
[387092270,1758570658270,-509.6002458,0.00021948,2]
[387092272,1758570658279,-1000.0,0.00021948,2]
[387092274,1758570658291,-150.0,0.00021953,2]
[387092276,1758570658302,-1000.0,0.00022023,2]
[387092278,1758570658311,-4349.02301379,0.00022044,2]
[387092279,1758570658320,-151.0,0.00022044,7]
[387092281,1758570658331,-500.0,0.00022064,2]
[387092283,1758570658342,-151.0,0.00022064,2]
[387092285,1758570658351,-176.0012702,0.00022064,2]
[387092287,1758570658361,-151.0,0.00022064,2]
[387092289,1758570658371,-151.0,0.000221,8]
[387092291,1758570658381,-25694.16957968,0.0002211,3]
[387092293,1758570658391,-160.0,0.0002211,3]
[387092296,1758570658402,-151.0,0.0002211,7]
[387092297,1758570658410,-151.0,0.0002211,7]
[387092299,1758570658419,-166.751128,0.0002211,7]
[387092301,1758570658429,-166.751128,0.0002211,7]
[387092303,1758570658438,-166.751128,0.0002211,7]
[387092305,1758570658447,-166.751128,0.0002211,7]
[387092307,1758570658458,-215.9231676,0.0002216,2]
[387092309,1758570658467,-601.4062964,0.00022188,2]
[387092311,1758570658476,-426.981,0.00022191,2]
[387092313,1758570658486,-979.55,0.00022191,2]
[387092315,1758570658496,-4751.1,0.00022191,2]
[387092317,1758570658505,-712.65,0.00022191,2]
[387092319,1758570658514,-480.0,0.00022191,2]
[387092321,1758570658523,-480.0,0.00022191,2]
[387092323,1758570658533,-512.16,0.00022191,2]
[387092325,1758570658542,-927.09,0.00022191,2]
[387092327,1758570658552,-480.0,0.00022191,2]
[387092329,1758570658561,-480.0,0.00022191,2]
[387092331,1758570658573,-512.21,0.00022191,2]
[387092333,1758570658583,-480.0,0.00022191,2]
[387092335,1758570658594,-528.7,0.00022191,2]
[387092338,1758570658604,-1070.42,0.00022191,2]
[387092339,1758570658613,-745.32,0.00022191,2]
[387092341,1758570658623,-480.0,0.00022191,2]
[387092343,1758570658632,-480.0,0.00022191,2]
[387092345,1758570658641,-480.0,0.00022191,2]
[387092347,1758570658650,-500.0,0.00022338,2]
[387092349,1758570658659,-151.0,0.00022363,7]
[387092351,1758570658669,-151.0,0.00022363,7]
[387092353,1758570658678,-151.0,0.00022363,7]
[387092355,1758570658687,-1500.0,0.00022449,2]
[387092357,1758570658696,-979.55,0.00022465,2]
[387092359,1758570658707,-4751.1,0.00022465,2]
[387092361,1758570658716,-712.65,0.00022465,2]
[387092363,1758570658725,-575.85,0.00022465,2]
[387092365,1758570658734,-480.0,0.00022465,2]
[387092367,1758570658743,-512.16,0.00022465,2]
[387092369,1758570658752,-927.09,0.00022465,2]
[387092371,1758570658762,-480.0,0.00022465,2]
[387092373,1758570658771,-502.86361168,0.00022465,2]
[387092375,1758570658780,-512.21,0.00022465,2]
[387092377,1758570658789,-480.0,0.00022465,2]
[387092379,1758570658799,-528.7,0.00022465,2]
[387092381,1758570658808,-1070.42,0.00022465,2]
[387092383,1758570658819,-745.32,0.00022465,2]
[387092385,1758570658832,-480.0,0.00022465,2]
[387092387,1758570658841,-480.0,0.00022465,2]
[387092389,1758570658850,-480.0,0.00022465,2]
[387092391,1758570658860,-1500.0,0.00022468,2]
[387092393,1758570658869,-1500.0,0.00022468,2]
[387092395,1758570658878,-1500.0,0.00022468,2]
[387092397,1758570658887,-1500.0,0.00022468,2]
[387092399,1758570658896,-168.0,0.00022474,2]
[387092401,1758570658905,-504.14783591,0.00022496,2]
[387092403,1758570658915,-1500.0,0.00022496,2]
[387092405,1758570658924,-1236.89195217,0.00022496,2]
[387092407,1758570658933,-192.506674,0.000225,2]
[387092409,1758570658942,-1000.0,0.000225,2]
[387092411,1758570658951,-300.0,0.00022501,2]
[387092413,1758570658963,-341.0,0.00022502,2]
[387092415,1758570658973,-173.26107977,0.00022523,2]
[387092416,1758570658982,-587.0,0.00022525,2]
[387092418,1758570658991,-500.0,0.00022571,2]
[387092420,1758570659000,-500.0,0.00022612,2]
[387092422,1758570659010,-168.0,0.00022653,2]
[387092424,1758570659020,-979.55,0.00022739,2]
[387092426,1758570659029,-4751.1,0.00022739,2]
[387092428,1758570659039,-712.65,0.00022739,2]
[387092430,1758570659048,-480.0,0.00022739,2]
[387092432,1758570659062,-512.16,0.00022739,2]
[387092434,1758570659073,-927.09,0.00022739,2]
[387092436,1758570659083,-480.0,0.00022739,2]
[387092438,1758570659093,-512.21,0.00022739,2]
[387092440,1758570659103,-547.32,0.00022739,2]
[387092442,1758570659112,-528.7,0.00022739,2]
[387092444,1758570659122,-1070.42,0.00022739,2]
[387092446,1758570659131,-745.32,0.00022739,2]
[387092448,1758570659140,-480.0,0.00022739,2]
[387092450,1758570659150,-480.0,0.00022739,2]
[387092452,1758570659159,-480.0,0.00022739,2]
[387092454,1758570659168,-321.54,0.00022857,2]
[387092456,1758570659177,-321.54,0.00022857,2]
[387092457,1758570659190,-500.0,0.00022886,2]
[387092459,1758570659199,-8355.04909351,0.0002292,2]
[387092461,1758570659209,-2000.0,0.00022996,2]
[387092463,1758570659219,-700.0,0.00023,2]
[387092465,1758570659228,-233.55588323,0.00023,3]
[387092467,1758570659237,-160.0,0.00023,3]
[387092469,1758570659246,-151.0,0.00023,9]
[387092471,1758570659255,-151.0,0.00023,5]
[387092473,1758570659264,-979.55,0.00023013,2]
[387092475,1758570659273,-4751.1,0.00023013,2]
[387092477,1758570659283,-712.65,0.00023013,2]
[387092479,1758570659295,-480.0,0.00023013,2]
[387092481,1758570659304,-512.16,0.00023013,2]
[387092483,1758570659314,-927.09,0.00023013,2]